bitfinex-derivatives/quotes_SOLF0:USTF0_20251202
["timestamp","ask_amount","ask_price","bid_price","bid_amount"]
[1764667440325,7.17013013,126.42,126.4,3.28838132]
[1764667441436,0.05053013,126.42,126.4,3.28838132]
[1764667443041,0.05053013,126.42,126.41,5.60886601]
[1764667444333,7.1177,126.46,126.41,5.60886601]
[1764667444538,7.1177,126.46,126.42,3.23]
[1764667445136,7.1179,126.45,126.42,3.23]
[1764667445334,7.17163792,126.45,126.42,3.28899107]
[1764667446135,0.05373792,126.45,126.42,3.28899107]
[1764667446330,0.05373792,126.45,126.42,0.05899107]
[1764667446537,0.05373792,126.45,126.42,3.28899107]
[1764667447127,7.1184,126.44,126.42,3.28899107]
[1764667447331,0.05373792,126.45,126.42,3.28899107]
[1764667448332,7.119,126.43,126.42,3.28899107]
[1764667448934,7.17203792,126.45,126.42,3.28899107]
[1764667449933,0.05373792,126.45,126.42,3.28899107]
[1764667451340,0.05373792,126.45,126.42,10.40859107]
[1764667451533,0.05373792,126.45,126.43,3.27]
[1764667453136,2.37886601,126.51,126.45,3.27]
[1764667454239,0.05545375,126.49,126.48,3.27]
[1764667454440,2.37886601,126.53,126.48,3.27]
[1764667454441,0.05777835,126.5,126.48,3.27]
[1764667463756,7.1135,126.53,126.49,3.27]
[1764667463947,7.1135,126.53,126.5,3.27]
[1764667464344,110.5955,126.6,126.52,3.27]
[1764667464549,2.37886601,126.59,126.52,3.27]
[1764667464853,7.16993503,126.57,126.54,3.32755636]
[1764667465553,0.05823503,126.57,126.54,3.32755636]
[1764667466051,0.05823503,126.57,126.55,3.27]
[1764667470056,7.1087,126.62,126.56,3.27]
[1764667470359,2.37886601,126.62,126.56,3.27]
[1764667470762,7.1096,126.6,126.56,3.27]
[1764667471362,0.05981901,126.59,126.57,3.32139402]
[1764667473561,0.05981901,126.59,126.57,10.43229402]
[1764667473757,2.37886601,126.64,126.58,3.35]
[1764667474654,9.48646601,126.64,126.59,7.1099]
[1764667474861,0.0559504,126.63,126.6,3.40795768]
[1764667477266,7.1638504,126.63,126.6,3.40795768]
[1764667477466,0.0559504,126.63,126.6,3.40795768]
[1764667478859,7.1637504,126.63,126.6,3.40795768]
[1764667479059,0.0559504,126.63,126.6,3.40795768]
[1764667479860,7.1084,126.62,126.6,3.40795768]
[1764667481557,0.0559504,126.63,126.6,3.40795768]
[1764667483871,0.0559504,126.63,126.6,10.51735768]
[1764667484077,0.0559504,126.63,126.61,3.27]
[1764667486571,0.0559504,126.63,126.62,3.27]
[1764667487673,7.1059,126.67,126.63,3.27]
[1764667488667,0.04985276,126.66,126.64,3.33002487]
[1764667489975,7.15605276,126.66,126.64,0.06002487]
[1764667490179,0.04985276,126.66,126.64,0.06002487]
[1764667490877,7.1066,126.65,126.64,0.06002487]
[1764667493084,7.1066,126.65,126.61,3.27]
[1764667493382,114.2526539,126.65,126.61,3.27]
[1764667493975,7.1072,126.65,126.61,3.27]
[1764667494176,7.1072,126.65,126.63,3.27]
[1764667494375,0.05080015,126.65,126.63,3.27]
[1764667495376,114.1994539,126.71,126.65,3.27]
[1764667495377,3.7031539,126.71,126.65,3.27]
[1764667495578,71.2831539,126.73,126.65,3.27]
[1764667495777,3.7031539,126.73,126.65,3.27]
[1764667496082,7.1039,126.7,126.67,3.27]
[1764667496286,7.16181486,126.7,126.67,3.32002108]
[1764667496779,0.05791486,126.7,126.67,3.32002108]
[1764667496978,0.05791486,126.7,126.68,3.27]
[1764667497281,3.7031539,126.76,126.68,3.27]
[1764667497780,3.7031539,126.77,126.68,3.27]
[1764667498180,3.7031539,126.77,126.71,3.27]
[1764667498392,0.0560965,126.74,126.71,3.32647842]
[1764667499570,177.9844,126.8,126.71,3.32647842]
[1764667499571,114.1157539,126.81,126.72,3.27]
[1764667499776,3.85734277,126.8,126.72,3.27]
[1764667500075,110.3955,126.83,126.75,3.27]
[1764667500275,110.388,126.84,126.76,3.27]
[1764667500480,0.05586176,126.81,126.8,3.27]
[1764667500674,0.05586176,126.81,126.79,0.05236766]
[1764667500878,3.75901566,126.81,126.79,0.05236766]
[1764667501291,0.05586176,126.81,126.79,0.05236766]
[1764667501580,0.05586176,126.81,126.79,3.32236766]
[1764667509791,0.05586176,126.81,126.79,0.05236766]
[1764667509987,3.7031539,126.8,126.79,0.05236766]
[1764667510179,3.7031539,126.8,126.74,3.12]
[1764667510384,114.1235539,126.8,126.74,3.12]
[1764667511394,7.15574993,126.78,126.76,0.05640345]
[1764667514186,10.85890383,126.78,126.76,0.05640345]
[1764667515289,7.102,126.74,126.71,3.12]
[1764667516392,7.16094877,126.74,126.71,3.17363506]
[1764667518591,7.1023,126.73,126.71,0.05363506]
[1764667518895,0.05894877,126.74,126.71,3.17363506]
[1764667525097,0.05894877,126.74,126.71,10.27663506]
[1764667525299,0.05894877,126.74,126.71,3.17363506]
[1764667526498,0.05894877,126.74,126.73,3.12]
[1764667528600,7.1007,126.76,126.73,3.12]
[1764667529605,7.15286084,126.76,126.73,3.12]
[1764667530099,0.05216084,126.76,126.73,3.12]
[1764667530991,7.0992,126.79,126.73,10.2219]
[1764667531307,7.0992,126.79,126.74,3.12]
[1764667531911,7.0982,126.81,126.75,3.15]
[1764667532113,0.05827839,126.79,126.78,3.15]
[1764667533115,7.0977,126.82,126.78,3.15]
[1764667534109,7.15475386,126.81,126.78,3.15]
[1764667534414,7.15475386,126.81,126.78,3.20603206]
[1764667537216,0.05705386,126.81,126.78,3.20603206]
[1764667538017,7.15475386,126.81,126.78,3.20603206]
[1764667540016,0.05705386,126.81,126.78,3.20603206]
[1764667540210,0.05705386,126.81,126.78,70.70603206]
[1764667540519,0.05705386,126.81,126.79,3.15]
[1764667541321,7.095,126.86,126.8,3.15]
[1764667542209,7.095,126.86,126.78,71.2031539]
[1764667542210,0.05683188,126.84,126.83,3.15]
[1764667542410,0.0522192,126.85,126.83,3.15]
[1764667543620,7.093,126.9,126.84,3.15]
[1764667544014,2.36130649,126.89,126.84,3.15]
[1764667544218,2.36130649,126.91,126.84,3.15]
[1764667544621,0.05438758,126.89,126.86,3.20504399]
[1764667545315,7.14778758,126.89,126.86,3.20504399]
[1764667545618,9.50909407,126.89,126.86,0.05504399]
[1764667545820,9.50909407,126.89,126.8,3.15]
[1764667545821,2.36130649,126.87,126.8,3.15]
[1764667546023,2.36130649,126.84,126.8,3.15]
[1764667547124,0.05490519,126.83,126.81,3.2030135]
[1764667547319,0.05608319,126.83,126.81,3.21046004]
[1764667548929,7.0946,126.87,126.81,3.21046004]
[1764667549126,9.45590649,126.87,126.81,3.21046004]
[1764667549929,0.05283641,126.85,126.81,3.21046004]
[1764667550633,0.05283641,126.85,126.81,10.30766004]
[1764667550831,0.05283641,126.85,126.81,3.21046004]
[1764667551327,0.05283641,126.85,126.84,3.15]
[1764667551823,7.0936,126.89,126.84,70.67]
[1764667552030,7.0936,126.89,126.85,3.15]
[1764667552530,9.45390649,126.91,126.85,3.15]
[1764667552931,0.02340767,126.89,126.87,0.05770058]
[1764667553730,0.02340767,126.89,126.87,3.20770058]
[1764667555232,0.02340767,126.89,126.88,3.15]
[1764667563143,7.11670767,126.89,126.87,0.05770058]
[1764667563332,114.30661416,126.89,126.83,3.15]
[1764667563536,2.36130649,126.84,126.8,3.15]
[1764667564038,9.45630649,126.86,126.82,3.15]
[1764667564430,0.05000561,126.85,126.84,3.15]
[1764667565336,110.3245,126.91,126.85,3.15]
[1764667565941,184.34886312,126.93,126.85,3.15]
[1764667566441,0.03110264,126.9,126.88,0.0574972]
[1764667567348,7.12410264,126.9,126.88,0.0574972]
[1764667570442,0.03110264,126.9,126.88,3.2874972]
[1764667575346,7.12380264,126.9,126.88,3.2874972]
[1764667575545,110.3404,126.89,126.76,110.4449]
[1764667575743,110.3584,126.87,126.79,3.23]
[1764667576144,7.0967,126.83,126.79,3.23]
[1764667576342,110.3584,126.87,126.79,3.23]
[1764667576539,116.91056312,126.88,126.79,3.23]
[1764667576739,0.05360642,126.84,126.82,3.28337495]
[1764667578235,116.88766312,126.91,126.82,3.28337495]
[1764667578442,116.88766312,126.91,126.82,3.23]
[1764667578751,67.5,126.93,126.85,3.23]
[1764667579134,0.03499341,126.9,126.88,0.0515087]
[1764667580552,7.0902,126.95,126.9,3.23]
[1764667581148,7.0906,126.94,126.9,3.23]
[1764667581450,7.0906,126.94,126.91,0.0548647]
[1764667581843,7.0906,126.94,126.91,3.2848647]
[1764667582246,7.0913,126.93,126.91,0.0548647]
[1764667583152,7.0913,126.93,126.91,3.2848647]
[1764667583340,7.0902,126.95,126.91,3.2848647]
[1764667587455,7.0906,126.94,126.91,3.2848647]
[1764667587647,116.83776312,126.97,126.91,0.0548647]
[1764667587850,110.2891,126.95,126.91,0.0548647]
[1764667588557,7.0911,126.93,126.91,0.0548647]
[1764667589362,7.0931,126.9,126.85,70.75]
[1764667589662,7.0931,126.9,126.86,3.23]
[1764667590361,110.3152,126.92,126.87,3.2859973]
[1764667590362,0.05486471,126.89,126.87,3.2859973]
[1764667592265,0.05486471,126.89,126.87,0.0559973]
[1764667592766,0.05486471,126.89,126.87,3.3459973]
[1764667597175,110.2793,126.96,126.87,3.3459973]
[1764667597479,110.2793,126.96,126.87,3.29]
[1764667598173,110.2793,126.96,126.9,0.05786562]
[1764667598364,7.0911,126.93,126.9,3.34786562]
[1764667599679,110.2727,126.97,126.9,3.34786562]
[1764667600074,110.2453,127.0,126.91,67.5]
[1764667600279,110.2453,127.0,126.95,3.17]
[1764667601478,7.0886,126.98,126.95,3.17]
[1764667604375,7.0879,126.99,126.95,3.17]
[1764667604574,7.0879,126.99,126.96,0.05357046]
[1764667605281,7.0879,126.99,126.96,3.22357046]
[1764667610076,7.087,127.01,126.96,3.22357046]
[1764667610488,7.087,127.01,126.97,3.17]
[1764667611781,7.0872,127.0,126.97,3.17]
[1764667611978,7.0872,127.0,126.97,3.2257797]
[1764667612484,7.0866,127.01,126.97,3.2257797]
[1764667612984,110.2254,127.03,126.97,3.2257797]
[1764667613189,7.0871,127.0,126.97,3.2257797]
[1764667613686,110.2254,127.03,126.97,0.0557797]
[1764667613687,7.0876,126.99,126.97,0.0557797]
[1764667614484,7.0876,126.99,126.97,3.2257797]
[1764667618696,7.0882,126.98,126.97,0.0557797]
[1764667619289,7.0876,127.0,126.97,0.0557797]
[1764667619496,110.2356,127.01,126.97,0.0557797]
[1764667620298,7.0876,126.99,126.97,0.0557797]
[1764667621995,7.0882,126.98,126.97,0.0557797]
[1764667622496,7.0882,126.98,126.97,3.2257797]
[1764667623499,7.0872,127.0,126.97,3.2257797]
[1764667624898,7.0864,127.02,126.98,3.17]
[1764667625094,7.0864,127.02,126.99,0.05969568]
[1764667625299,7.0864,127.02,126.99,3.22969568]
[1764667627602,7.0864,127.02,126.99,0.05969568]
[1764667628905,7.0864,127.02,126.99,3.30969568]
[1764667629100,113.86552805,127.07,127.0,3.25]
[1764667629292,113.86552805,127.07,127.02,0.0510474]
[1764667629802,7.0853,127.04,127.02,0.0510474]
[1764667632405,7.0843,127.05,127.02,0.0510474]
[1764667632799,3.68002805,127.07,127.02,0.0510474]
[1764667633401,7.085,127.04,127.02,0.0510474]
[1764667634809,7.0854,127.03,127.02,0.0510474]
[1764667635199,113.86552805,127.07,127.02,0.0510474]
[1764667635704,7.084,127.06,127.02,0.0510474]
[1764667635908,3.68002805,127.07,127.02,3.3010474]
[1764667636111,3.68002805,127.07,127.02,0.0510474]
[1764667636611,7.0849,127.04,127.02,0.0510474]
[1764667638411,7.0849,127.04,127.02,3.3010474]
[1764667638609,177.6085,127.09,127.02,3.3010474]
[1764667638610,181.28852805,127.09,127.02,3.3010474]
[1764667639711,7.0838,127.06,127.02,3.3010474]
[1764667639908,110.1773,127.08,127.02,3.3010474]
[1764667640714,7.0839,127.06,127.02,3.3010474]
[1764667647814,7.0839,127.06,127.02,0.0510474]
[1764667649016,7.0844,127.05,127.02,0.0510474]
[1764667649213,3.68002805,127.05,127.02,0.0510474]
[1764667649812,3.68002805,127.07,127.02,0.0510474]
[1764667650909,3.68002805,127.07,127.02,3.3010474]
[1764667651107,3.68002805,127.07,127.02,0.0510474]
[1764667651323,7.0844,127.05,127.02,0.0510474]
[1764667652506,7.0849,127.04,127.02,0.0510474]
[1764667652707,3.73002805,127.04,127.02,0.0010474]
[1764667652915,110.2359,127.01,126.93,3.21]
[1764667653119,10.76832805,126.98,126.93,3.21]
[1764667653310,3.68002805,126.98,126.91,3.21]
[1764667653913,0.0510474,126.96,126.93,0.05913714]
[1764667655307,0.0510474,126.96,126.93,3.26913714]
[1764667656613,7.0869,127.01,126.94,3.21]
[1764667656817,7.0873,127.0,126.94,3.21]
[1764667657520,7.0873,127.0,126.96,0.05568478]
[1764667657913,7.0873,127.0,126.96,3.26568478]
[1764667658113,7.0873,127.0,126.96,0.05568478]
[1764667659519,7.0873,127.0,126.96,3.26568478]
[1764667662118,7.0879,126.99,126.96,0.05568478]
[1764667663523,7.0869,127.01,126.96,3.26568478]
[1764667668823,7.0871,127.0,126.96,3.26568478]
[1764667670221,7.0877,126.99,126.96,3.26568478]
[1764667670417,7.0877,126.99,126.96,0.05568478]
[1764667671223,7.0882,126.98,126.96,0.05568478]
[1764667673624,9.44455311,126.98,126.96,0.05568478]
[1764667674019,7.0887,126.97,126.96,0.05568478]
[1764667674732,7.0881,126.99,126.96,3.26568478]
[1764667675618,7.0869,127.01,126.96,3.26568478]
[1764667675819,112.57665311,127.03,126.96,3.26568478]
[1764667676826,7.0871,127.0,126.96,3.26568478]
[1764667678333,7.0871,127.0,126.97,3.21]
[1764667678931,7.0864,127.02,126.97,10.2987]
[1764667679138,7.0864,127.02,126.98,3.26601528]
[1764667681434,9.44315311,127.01,126.98,0.05601528]
[1764667681939,2.35635311,127.01,126.98,0.05601528]
[1764667683542,7.0874,127.0,126.98,0.05601528]
[1764667691348,2.35635311,126.99,126.98,0.05601528]
[1764667691652,112.60965311,126.99,126.93,3.38]
[1764667691852,2.35635311,126.97,126.93,3.38]
[1764667692344,2.35635311,126.99,126.93,3.38]
[1764667692549,0.05103564,126.97,126.96,3.38]
[1764667693764,0.05103564,126.97,126.95,3.43975948]
[1764667694054,0.05103564,126.97,126.95,0.05975948]
[1764667694650,7.14003564,126.97,126.95,0.05975948]
[1764667695857,7.14003564,126.97,126.95,3.43975948]
[1764667699560,0.05103564,126.97,126.95,3.43975948]
[1764667699760,0.05103564,126.97,126.95,0.05975948]
[1764667699961,0.05103564,126.97,126.95,3.43975948]
[1764667700862,7.13983564,126.97,126.95,3.43975948]
[1764667710470,0.05103564,126.97,126.95,3.43975948]
[1764667711870,7.14003564,126.97,126.95,3.43975948]
[1764667713564,0.05103564,126.97,126.95,3.43975948]
[1764667715767,7.0893,126.96,126.95,3.43975948]
[1764667716273,7.0893,126.96,126.95,0.05975948]
[1764667721372,7.0905,126.94,126.89,7.0929]
[1764667721679,7.0905,126.94,126.9,3.09]
[1764667722475,0.06022897,126.93,126.91,0.05645354]
[1764667722770,7.15122897,126.93,126.91,0.05645354]
[1764667724584,0.06022897,126.93,126.91,3.14645354]
[1764667731494,0.06022897,126.93,126.91,0.05645354]
[1764667733400,7.0915,126.92,126.91,0.05645354]
[1764667733600,7.0915,126.92,126.91,3.14645354]
[1764667740216,7.0931,126.9,126.88,3.09]
[1764667740512,110.3154,126.92,126.86,3.09]
[1764667740711,114.01147727,126.91,126.86,3.09]
[1764667741313,7.0938,126.88,126.87,0.05084625]
[1764667741514,7.0938,126.88,126.87,3.14084625]
[1764667742418,7.14941015,126.9,126.87,3.14084625]
[1764667742609,0.05651015,126.9,126.87,3.14084625]
[1764667743115,0.05651015,126.9,126.89,3.09]
[1764667750316,113.95897727,126.97,126.91,3.12]
[1764667751205,113.95897727,126.97,126.93,0.0599103]
[1764667751206,7.0904,126.94,126.93,0.0599103]
[1764667751424,0.05671767,126.95,126.93,3.1799103]
[1764667752114,0.05671767,126.95,126.94,3.12]
[1764667753818,7.0866,127.01,126.96,3.12]
[1764667754416,3.68517727,127.03,126.96,3.12]
[1764667754417,7.0871,127.0,126.96,3.12]
[1764667754820,0.05610389,126.99,126.97,3.17005935]
[1764667756428,124.3762,127.05,126.97,3.17005935]
[1764667756429,416.52756365,127.09,126.98,3.12]
[1764667756619,113.87237727,127.07,126.98,3.12]
[1764667756819,7.085,127.04,126.99,3.12]
[1764667757021,110.1923,127.06,126.99,3.12]
[1764667757632,110.1923,127.06,127.01,0.05902615]
[1764667757930,7.0855,127.03,127.01,0.05902615]
[1764667760816,7.0855,127.03,127.01,3.17902615]
[1764667762026,7.0855,127.03,127.01,0.05902615]
[1764667768229,7.0855,127.03,127.01,3.17902615]
[1764667769531,7.0855,127.03,127.01,0.05902615]
[1764667771427,7.0883,126.98,126.94,67.4]
[1764667771739,7.0883,126.98,126.95,3.12]
[1764667772536,7.14887059,126.98,126.95,3.17742737]
[1764667776840,110.2029,127.05,126.95,3.17742737]
[1764667776841,110.1079,127.16,127.05,3.16]
[1764667777033,110.1139,127.15,127.07,3.16]
[1764667777228,113.80137727,127.15,127.07,3.16]
[1764667777435,110.1233,127.14,127.07,3.16]
[1764667777834,110.1233,127.14,127.09,0.05857559]
[1764667778034,110.1412,127.12,127.09,0.05857559]
[1764667778435,113.80847727,127.14,127.09,0.05857559]
[1764667778836,7.0811,127.11,127.09,0.05857559]
[1764667785943,7.0826,127.08,127.03,3.35]
[1764667786342,9.43865076,127.06,127.0,10.437]
[1764667786947,0.05169788,127.04,127.02,0.05724611]
[1764667787548,0.05169788,127.04,127.02,3.40724611]
[1764667791643,0.05169788,127.04,127.02,0.05724611]
[1764667792553,0.05169788,127.04,127.02,3.40724611]
[1764667794156,0.05169788,127.04,127.02,0.05724611]
[1764667794157,9.49144864,127.04,127.02,0.05724611]
[1764667798047,7.0873,127.0,126.97,3.35]
[1764667798956,2.35475076,127.01,126.97,3.35]
[1764667799158,0.05619644,127.0,126.97,3.4058336]
[1764667800359,7.0877,126.99,126.97,0.0558336]
[1764667800658,9.44245076,126.99,126.97,0.0558336]
[1764667802954,9.44245076,126.99,126.93,3.35]
[1764667802955,7.0895,126.96,126.93,3.35]
[1764667803147,9.44425076,126.96,126.93,3.35]
[1764667803857,7.09,126.95,126.93,0.05033991]
[1764667804249,2.35475076,126.94,126.93,0.05033991]
[1764667805558,2.35475076,126.94,126.89,3.35]
[1764667806457,7.0918,126.92,126.9,0.05252402]
[1764667807461,7.0918,126.92,126.9,3.40252402]
[1764667810059,0.05618229,126.93,126.9,3.40252402]
[1764667811169,0.05618229,126.93,126.9,10.49512402]
[1764667811356,0.05618229,126.93,126.91,3.3]
[1764667814061,2.41093305,126.93,126.9,0.05252402]
[1764667815068,7.0919,126.92,126.9,0.05252402]
[1764667817672,2.35475076,126.91,126.9,0.05252402]
[1764667817870,2.35475076,126.91,126.85,3.3]
[1764667817871,110.3339,126.9,126.85,3.3]
[1764667818875,0.0554125,126.89,126.86,3.35245488]
[1764667820777,0.0554125,126.89,126.87,3.3]
[1764667824476,0.0554125,126.89,126.86,3.35245488]
[1764667826179,0.0554125,126.89,126.86,10.44725488]
[1764667826482,0.0554125,126.89,126.87,3.3]
[1764667829076,0.0554125,126.89,126.86,62.05245488]
[1764667829077,0.0554125,126.89,126.86,3.35245488]
[1764667829876,9.44885076,126.88,126.86,0.05245488]
[1764667830880,2.35475076,126.88,126.77,7.0994]
[1764667831081,7.0966,126.83,126.8,3.3]
[1764667832086,7.15451971,126.83,126.8,3.35075374]
[1764667835679,0.05791971,126.83,126.8,3.35075374]
[1764667839290,7.15461971,126.83,126.8,3.35075374]
[1764667842989,7.15461971,126.83,126.8,0.05075374]
[1764667844981,7.15461971,126.83,126.8,3.20075374]
[1764667845589,0.05791971,126.83,126.8,3.20075374]
[1764667846380,2.41267047,126.83,126.8,3.20075374]
[1764667846595,2.41267047,126.83,126.8,0.05075374]
[1764667846786,2.35475076,126.81,126.8,0.05075374]
[1764667847389,9.45245076,126.81,126.8,0.05075374]
[1764667848396,7.0977,126.81,126.8,0.05075374]
[1764667848689,7.0977,126.82,126.8,0.05075374]
[1764667850393,0.05791971,126.83,126.8,0.05075374]
[1764667850595,0.05791971,126.83,126.8,3.20075374]
[1764667851094,7.15451971,126.83,126.8,3.20075374]
[1764667851489,7.0972,126.82,126.8,3.20075374]
[1764667851694,7.0972,126.82,126.8,0.05075374]
[1764667853098,7.0972,126.82,126.8,3.20075374]
[1764667854092,0.05791971,126.83,126.8,3.20075374]
[1764667854694,0.05791971,126.83,126.82,3.15]
[1764667855201,3.69317599,126.9,126.83,3.15]
[1764667856302,0.05932893,126.88,126.85,3.20845558]
[1764667858701,7.15312893,126.88,126.85,3.20845558]
[1764667859604,7.0944,126.87,126.85,3.20845558]
[1764667859803,7.0944,126.87,126.85,0.05845558]
[1764667861208,0.05932893,126.88,126.85,0.05845558]
[1764667861502,0.05932893,126.88,126.85,3.20845558]
[1764667864299,0.05932893,126.88,126.86,3.15]
[1764667864813,0.05932893,126.88,126.87,3.15]
[1764667866908,7.0922,126.91,126.87,10.2443]
[1764667867102,7.0922,126.91,126.88,3.15]
[1764667868006,0.04993584,126.91,126.88,3.20912941]
[1764667876314,0.04993584,126.91,126.9,3.22]
[1764667876815,7.0888,126.97,126.9,10.3126]
[1764667877014,113.94037599,127.0,126.92,3.22]
[1764667877920,0.05362207,126.97,126.95,0.0528077]
[1764667878311,7.14262207,126.97,126.95,0.0528077]
[1764667878518,7.14262207,126.97,126.95,3.2728077]
[1764667880814,7.14262207,126.97,126.95,0.0528077]
[1764667884120,7.14262207,126.97,126.95,3.2728077]
[1764667884415,7.14262207,126.97,126.95,0.0528077]
[1764667888420,7.0893,126.96,126.95,0.0528077]
[1764667892018,7.0893,126.96,126.86,3.69317599]
[1764667892019,113.98957599,126.94,126.86,39.32]
[1764667892220,114.01067599,126.92,126.86,3.3]
[1764667892426,114.02757599,126.9,126.8,3.3]
[1764667892724,114.02757599,126.9,126.82,3.3]
[1764667892924,0.05001053,126.87,126.85,0.06033025]
[1764667893223,0.05001053,126.87,126.85,3.36033025]
[1764667893814,3.69317599,126.93,126.86,3.3]
[1764667894225,7.092,126.92,126.87,3.3]
[1764667894934,0.05552858,126.91,126.89,3.3]
[1764667902224,7.14762858,126.91,126.89,3.3]
[1764667906830,114.07420457,126.91,126.88,0.05234283]
[1764667907232,7.0932,126.89,126.88,0.05234283]
[1764667910327,9.45436775,126.89,126.88,0.05234283]
[1764667911539,7.0951,126.86,126.84,3.15]
[1764667912539,7.15289974,126.86,126.84,3.20929036]
[1764667913429,0.05779974,126.86,126.84,3.20929036]
[1764667915340,7.15269974,126.86,126.84,3.20929036]
[1764667917245,0.05779974,126.86,126.84,3.20929036]
[1764667918141,7.15279974,126.86,126.84,0.05929036]
[1764667919441,7.15279974,126.86,126.84,3.20929036]
[1764667920554,7.15279974,126.86,126.84,0.05929036]
[1764667920742,2.36116775,126.85,126.84,0.05929036]
[1764667921347,7.15279974,126.86,126.84,3.20929036]
[1764667923351,0.05779974,126.86,126.84,3.20929036]
[1764667931150,0.05779974,126.86,126.84,10.30529036]
[1764667931846,0.05779974,126.86,126.85,3.31]
[1764667935752,2.36116775,126.92,126.85,3.31]
[1764667936857,7.0932,126.89,126.87,3.36214797]
[1764667937753,0.05127758,126.9,126.87,3.36214797]
[1764667938661,7.0938,126.89,126.87,3.36214797]
[1764667938859,0.05127758,126.9,126.87,3.36214797]
[1764667940156,112.74584533,126.9,126.87,0.05214797]
[1764667940853,2.36116775,126.88,126.87,0.05214797]
[1764667941359,7.0955,126.85,126.83,3.31]
[1764667942560,0.05261672,126.85,126.83,3.3651318]
[1764667944259,7.14811672,126.85,126.83,0.0551318]
[1764667946166,7.14811672,126.85,126.83,3.3651318]
[1764667948667,0.05261672,126.85,126.83,3.3651318]
[1764667952471,112.68596775,126.91,126.83,3.3651318]
[1764667952673,112.68596775,126.91,126.83,3.31]
[1764667953376,7.0937,126.89,126.84,3.13]
[1764667953576,0.0582604,126.88,126.86,3.13]
[1764667959280,0.0582604,126.88,126.85,70.82044683]
[1764667959783,7.0944,126.87,126.85,70.82044683]
[1764667961477,7.0944,126.87,126.86,3.28]
[1764667970200,0.0582604,126.88,126.86,3.28]
[1764667971391,7.0943,126.87,126.86,3.28]
[1764667973291,7.0943,126.87,126.85,0.06044683]
[1764667973483,7.0949,126.86,126.85,0.06044683]
[1764667980798,7.0961,126.84,126.81,3.28]
[1764667981794,7.15289874,126.84,126.81,3.33037834]
[1764667982099,0.05679874,126.84,126.81,3.33037834]
[1764667989403,7.15279874,126.84,126.81,3.33037834]
[1764667990204,7.0966,126.83,126.81,3.33037834]
[1764667996112,0.05679874,126.84,126.81,3.33037834]
[1764667996306,0.05679874,126.84,126.81,0.05037834]
[1764667996507,114.13098981,126.84,126.81,0.05037834]
[1764667999310,7.0971,126.82,126.81,0.05037834]
[1764668000116,7.0971,126.82,126.81,3.42037834]
[1764668001135,7.0971,126.82,126.81,0.05037834]
[1764668005727,7.0994,126.78,126.77,3.29]
[1764668009232,0.049723,126.79,126.77,3.29]
[1764668013636,0.049723,126.79,126.77,10.3899]
[1764668014335,0.049723,126.79,126.78,3.29]
[1764668015838,0.049723,126.79,126.78,10.3894]
[1764668016040,181.53669107,126.86,126.79,3.29]
[1764668016539,7.0971,126.83,126.79,3.29]
[1764668017033,7.0971,126.83,126.8,0.05318414]
[1764668017338,0.05962697,126.82,126.81,3.29]
[1764668018539,0.05962697,126.82,126.8,0.05318414]
[1764668018732,3.74781804,126.82,126.8,0.05318414]
[1764668018935,220.824,126.81,126.74,70.86]
[1764668019235,3.68819107,126.8,126.74,70.86]
[1764668019941,7.1002,126.77,126.76,0.05164066]
[1764668021140,0.0500249,126.78,126.76,3.38164066]
[1764668038450,7.0999,126.77,126.76,3.38164066]
[1764668040553,7.0999,126.77,126.76,0.05164066]
[1764668042662,0.0500249,126.78,126.76,3.38164066]
[1764668042959,110.3857,126.84,126.76,3.38164066]
[1764668043261,112.74940452,126.84,126.78,3.33]
[1764668043960,0.05376122,126.82,126.8,0.05605526]
[1764668044358,7.15106122,126.82,126.8,0.05605526]
[1764668048165,7.0977,126.81,126.8,0.05605526]
[1764668062675,9.46140452,126.81,126.8,0.05605526]
[1764668065973,7.0977,126.81,126.8,0.05605526]
[1764668066173,9.46140452,126.81,126.8,0.05605526]
[1764668068879,110.4443,126.77,126.74,19.39917981]
[1764668069072,110.4624,126.75,126.69,3.3]
[1764668069274,2.36370452,126.74,126.69,3.3]
[1764668069474,110.4624,126.75,126.69,3.3]
[1764668069674,2.36370452,126.74,126.69,3.3]
[1764668069870,0.0500708,126.73,126.7,0.05335866]
[1764668070074,7.1029,126.72,126.7,3.35335866]